bitfinex-derivatives/quotes_BTCF0:USTF0_20260314
["timestamp","ask_amount","ask_price","bid_price","bid_amount"]
[1773449364949,0.042454,70653.0,70640.0,0.25294379]
[1773449365253,0.042453,70655.0,70642.0,0.04246]
[1773449365547,0.042454,70654.0,70642.0,0.04246]
[1773449366345,0.2025071,70666.0,70637.0,0.21048279]
[1773449366545,0.042451,70658.0,70644.0,0.042459]
[1773449366742,0.042451,70658.0,70645.0,0.042459]
[1773449367851,0.043891,70658.0,70645.0,0.042459]
[1773449368152,0.042452,70657.0,70645.0,0.042459]
[1773449368448,0.042452,70657.0,70643.0,0.00144]
[1773449368449,0.042453,70656.0,70643.0,0.0439]
[1773449369748,0.042453,70655.0,70643.0,0.00144]
[1773449370047,0.042453,70655.0,70643.0,0.0439]
[1773449370547,0.042455,70653.0,70643.0,0.00144]
[1773449370747,0.2039471,70658.0,70631.0,0.0007079]
[1773449370947,0.2025071,70657.0,70638.0,0.042463]
[1773449371156,0.00144,70658.0,70639.0,0.00144]
[1773449371157,0.2449641,70649.0,70639.0,0.00144]
[1773449371349,0.2025071,70649.0,70634.0,0.042465]
[1773449371551,0.2025071,70649.0,70631.0,0.0007079]
[1773449371552,0.042464,70638.0,70621.0,0.00016522]
[1773449371744,0.2449691,70640.0,70627.0,0.042469]
[1773449372142,0.20573776,70639.0,70627.0,0.042469]
[1773449372343,0.20573776,70638.0,70630.0,0.042468]
[1773449372543,0.20573776,70637.0,70631.0,0.042467]
[1773449372757,0.20573776,70636.0,70631.0,0.042467]
[1773449372947,0.20573776,70635.0,70629.0,0.042468]
[1773449373256,0.20573776,70634.0,70630.0,0.042468]
[1773449373455,0.04246,70644.0,70632.0,0.042466]
[1773449373753,0.00144,70643.0,70632.0,0.042466]
[1773449374848,0.00144,70643.0,70627.0,0.21192279]
[1773449375154,0.042459,70646.0,70627.0,0.21192279]
[1773449375353,0.043899,70645.0,70627.0,0.21192279]
[1773449375658,0.04246,70644.0,70632.0,0.042467]
[1773449377255,0.00144,70646.0,70635.0,0.042465]
[1773449377456,0.043899,70646.0,70633.0,0.042466]
[1773449378159,0.04246,70644.0,70633.0,0.042466]
[1773449379556,0.00144,70646.0,70633.0,0.042466]
[1773449379748,0.042446,70666.0,70636.0,0.042464]
[1773449379749,0.2025071,70651.0,70636.0,0.042464]
[1773449380049,0.2025071,70649.0,70624.0,0.21048279]
[1773449380252,0.2025071,70644.0,70625.0,0.00144]
[1773449380443,0.2025071,70644.0,70625.0,0.21192279]
[1773449380646,0.2025071,70644.0,70626.0,0.00144]
[1773449380949,0.04246,70643.0,70621.0,0.21064801]
[1773449381151,0.2025071,70644.0,70623.0,0.21048279]
[1773449381350,0.2025071,70644.0,70633.0,0.042466]
[1773449382156,0.042458,70647.0,70634.0,0.042466]
[1773449382356,0.00144,70646.0,70634.0,0.042466]
[1773449382958,0.2025071,70644.0,70632.0,0.042467]
[1773449383159,0.2449671,70644.0,70630.0,0.042468]
[1773449383356,0.2025071,70642.0,70630.0,0.042468]
[1773449384550,0.2025071,70642.0,70627.0,0.00144]
[1773449384959,0.2025071,70642.0,70621.0,0.21064801]
[1773449385157,0.2449681,70642.0,70622.0,0.00144]
[1773449385357,0.20089998,70641.0,70622.0,0.00144]
[1773449385557,0.20089998,70640.0,70622.0,0.00144]
[1773449385751,0.20089998,70639.0,70622.0,0.00144]
[1773449386059,0.20089998,70638.0,70623.0,0.00144]
[1773449386258,0.20089998,70637.0,70623.0,0.00144]
[1773449386462,0.20089998,70636.0,70629.0,0.042468]
[1773449386758,0.20089998,70635.0,70630.0,0.042468]
[1773449386960,0.00144,70640.0,70626.0,0.00144]
[1773449387150,0.00144,70640.0,70633.0,0.042466]
[1773449389451,0.042459,70646.0,70633.0,0.042466]
[1773449389657,0.00144,70645.0,70633.0,0.042466]
[1773449390352,0.19480365,70643.0,70627.0,0.042469]
[1773449390655,0.19480365,70641.0,70627.0,0.042469]
[1773449390860,0.19624365,70641.0,70628.0,0.042469]
[1773449391162,0.19624365,70641.0,70630.0,0.042467]
[1773449391956,0.042462,70640.0,70626.0,0.04247]
[1773449393262,0.19624365,70641.0,70625.0,0.00144]
[1773449393263,0.24011781,70639.0,70625.0,0.00144]
[1773449393454,0.24011781,70639.0,70626.0,0.04247]
[1773449394966,0.24011881,70638.0,70626.0,0.04247]
[1773449395466,0.19765481,70633.0,70621.0,0.00016522]
[1773449395657,0.00144,70632.0,70621.0,0.00016522]
[1773449395856,0.19909481,70632.0,70621.0,0.00016522]
[1773449396958,0.19909481,70632.0,70621.0,0.04263822]
[1773449397365,0.19909481,70632.0,70622.0,0.042473]
[1773449397966,0.19909481,70632.0,70623.0,0.042472]
[1773449398461,0.19909481,70632.0,70621.0,0.00016522]
[1773449398962,0.19909481,70632.0,70621.0,0.04263822]
[1773449399170,0.19765481,70639.0,70621.0,0.00016522]
[1773449399360,0.19909481,70638.0,70621.0,0.00016522]
[1773449399666,0.19765481,70636.0,70621.0,0.00016522]
[1773449399856,0.00144,70635.0,70621.0,0.00016522]
[1773449400263,0.19909481,70635.0,70621.0,0.00016522]
[1773449400568,0.24155981,70635.0,70623.0,0.042472]
[1773449401165,0.19765481,70647.0,70621.0,0.20993736]
[1773449401469,0.04246,70644.0,70632.0,0.042466]
[1773449401857,0.04246,70644.0,70630.0,0.042468]
[1773449402064,0.042453,70655.0,70631.0,0.20977214]
[1773449402266,0.00144,70654.0,70642.0,0.04246]
[1773449402467,0.00144,70653.0,70642.0,0.04246]
[1773449402772,0.00144,70652.0,70642.0,0.04246]
[1773449403070,0.00144,70652.0,70633.0,0.20977214]
[1773449403472,0.00144,70654.0,70633.0,0.18729214]
[1773449403863,0.00144,70653.0,70644.0,0.042459]
[1773449404259,0.00144,70653.0,70645.0,0.042459]
[1773449404468,0.00144,70654.0,70645.0,0.042459]
[1773449404872,0.19765481,70662.0,70641.0,0.20977214]
[1773449405164,0.00144,70661.0,70644.0,0.20977214]
[1773449405365,0.00144,70660.0,70647.0,0.042457]
[1773449405566,0.04245,70661.0,70647.0,0.042457]
[1773449405869,0.00144,70660.0,70649.0,0.042456]
[1773449407666,0.00144,70660.0,70642.0,0.20977214]
[1773449407867,0.14628748,70665.0,70652.0,0.042454]
[1773449408066,0.00144,70664.0,70652.0,0.042454]
[1773449408671,0.00144,70663.0,70652.0,0.042454]
[1773449409377,0.00144,70662.0,70652.0,0.042454]
[1773449409569,0.00144,70662.0,70650.0,0.042456]
[1773449411678,0.00144,70662.0,70639.0,0.00144]
[1773449411979,0.04245,70660.0,70647.0,0.042457]
[1773449412876,0.04245,70660.0,70648.0,0.042457]
[1773449413178,0.042451,70659.0,70648.0,0.042457]
[1773449413677,0.00144,70658.0,70648.0,0.042457]
[1773449413874,0.00144,70658.0,70646.0,0.042458]
[1773449414474,0.00144,70658.0,70644.0,0.20977214]
[1773449415278,0.00144,70658.0,70649.0,0.042456]
[1773449415472,0.00144,70657.0,70648.0,0.20977214]
[1773449415977,0.00144,70657.0,70641.0,0.20977214]
[1773449416476,0.46284756,70664.0,70642.0,0.20977214]
[1773449416673,0.42183956,70666.0,70651.0,0.20977214]
[1773449417169,0.043887,70666.0,70651.0,0.20977214]
[1773449417982,0.043887,70666.0,70653.0,0.042454]
[1773449418878,0.042447,70665.0,70653.0,0.042454]
[1773449420089,0.00144,70666.0,70651.0,0.20977214]
[1773449420285,0.00144,70670.0,70662.0,0.042449]
[1773449420577,0.043884,70671.0,70658.0,0.042451]
[1773449420774,0.043884,70671.0,70656.0,0.20977214]
[1773449420775,0.00144,70670.0,70659.0,0.04245]
[1773449420977,0.20565706,70669.0,70647.0,0.21714501]
[1773449421172,0.20565706,70668.0,70657.0,0.042451]
[1773449421373,0.043884,70670.0,70650.0,0.28974811]
[1773449421570,0.043884,70670.0,70651.0,0.21570501]
[1773449421766,0.043884,70670.0,70658.0,0.042451]
[1773449424481,0.00144,70669.0,70658.0,0.042451]
[1773449424875,0.00144,70669.0,70656.0,0.042452]
[1773449425076,0.20709706,70669.0,70656.0,0.042452]
[1773449426075,0.042453,70655.0,70634.0,0.21570501]
[1773449426378,0.00144,70657.0,70644.0,0.042459]
[1773449426681,0.52291926,70693.0,70621.0,0.29664985]
[1773449426682,0.042459,70645.0,70623.0,0.00144]
[1773449426878,0.00144,70645.0,70634.0,0.042465]
[1773449428486,0.00144,70645.0,70638.0,0.042463]
[1773449429880,0.042454,70653.0,70633.0,0.21570501]
[1773449430078,0.00144,70653.0,70642.0,0.04246]
[1773449431583,0.00144,70652.0,70642.0,0.04246]
[1773449432381,0.042452,70657.0,70641.0,0.21570501]
[1773449432579,0.00144,70656.0,70641.0,0.21570501]
[1773449433081,0.042452,70657.0,70645.0,0.042459]
[1773449434086,0.00144,70656.0,70645.0,0.042459]
[1773449434280,0.042453,70656.0,70643.0,0.04246]
[1773449434491,0.00144,70655.0,70643.0,0.04246]
[1773449434786,0.00144,70655.0,70644.0,0.042459]
[1773449435679,0.00144,70655.0,70646.0,0.042458]
[1773449439485,0.043891,70659.0,70648.0,0.042457]
[1773449439994,0.042447,70665.0,70649.0,0.28974811]
[1773449440186,0.00144,70664.0,70649.0,0.28974811]
[1773449440493,0.042448,70664.0,70652.0,0.042454]
[1773449440791,0.00144,70663.0,70652.0,0.042454]
[1773449441990,0.00144,70665.0,70653.0,0.25815901]
[1773449442184,0.00144,70665.0,70654.0,0.042453]
[1773449442383,0.00144,70669.0,70663.0,0.042448]
[1773449442596,0.20565706,70678.0,70656.0,0.21570501]
[1773449442887,0.00144,70677.0,70656.0,0.21570501]
[1773449443790,0.042442,70674.0,70661.0,0.042449]
[1773449445089,0.042442,70674.0,70662.0,0.042448]
[1773449445391,0.042442,70674.0,70662.0,0.25815301]
[1773449445591,0.00144,70677.0,70661.0,0.21570501]
[1773449445886,0.00144,70676.0,70661.0,0.200607]
[1773449446393,0.00144,70676.0,70666.0,0.042446]
[1773449448191,0.04244,70678.0,70666.0,0.042446]
[1773449448492,0.00144,70677.0,70666.0,0.042446]
[1773449448691,0.04244,70678.0,70666.0,0.042446]
[1773449448892,0.00144,70677.0,70666.0,0.042446]
[1773449449287,0.00144,70676.0,70664.0,0.042447]
[1773449449688,0.00144,70676.0,70665.0,0.042447]
[1773449449889,0.00144,70675.0,70665.0,0.042447]
[1773449450098,0.00144,70675.0,70666.0,0.042446]
[1773449450285,0.0007074,70681.0,70666.0,0.042446]
[1773449450286,0.04244,70678.0,70666.0,0.042446]
[1773449450485,0.0007074,70681.0,70667.0,0.200607]
[1773449450692,0.00144,70680.0,70669.0,0.042444]
[1773449451088,0.0431454,70681.0,70669.0,0.042444]
[1773449451295,0.0431454,70681.0,70621.0,0.00016522]
[1773449451296,0.19720672,70671.0,70621.0,0.00016522]
[1773449451489,0.19720672,70649.0,70621.0,0.00016522]
[1773449451693,0.19720672,70643.0,70621.0,0.00016522]
[1773449451883,0.042451,70658.0,70640.0,0.042462]
[1773449451884,8e-08,70642.0,70640.0,0.042462]
[1773449452085,0.00144,70649.0,70636.0,0.042464]
[1773449452294,0.00144,70649.0,70630.0,0.07397062]
[1773449452295,0.043897,70649.0,70634.0,0.042465]
[1773449452491,0.043897,70649.0,70634.0,0.2392602]
[1773449452697,0.042456,70651.0,70636.0,0.042464]
[1773449452888,0.00144,70650.0,70636.0,0.2392592]
[1773449453392,0.00144,70650.0,70636.0,0.042464]
[1773449453590,0.00144,70650.0,70637.0,0.1967952]
[1773449454186,0.043893,70655.0,70641.0,0.042461]
[1773449454496,0.042455,70653.0,70642.0,0.1967952]
[1773449454692,0.043895,70653.0,70642.0,0.1967952]
[1773449454888,0.00144,70653.0,70642.0,0.1967952]
[1773449455093,0.042452,70657.0,70642.0,0.2392562]
[1773449455296,0.00144,70656.0,70642.0,0.2392562]
[1773449455695,0.00144,70656.0,70643.0,0.04246]
[1773449456103,0.043892,70657.0,70643.0,0.04246]
[1773449456397,0.043892,70657.0,70642.0,0.02682889]
[1773449457099,0.043892,70657.0,70643.0,0.04246]
[1773449457301,0.042452,70657.0,70643.0,0.2392552]
[1773449460301,0.043891,70659.0,70644.0,0.2392542]
[1773449460500,0.043891,70659.0,70646.0,0.042458]
[1773449460704,0.00144,70663.0,70647.0,0.1982352]
[1773449461002,0.043885,70668.0,70649.0,0.1967952]
[1773449461198,0.043885,70668.0,70652.0,0.1967952]
[1773449461401,0.00144,70667.0,70652.0,0.1982352]
[1773449461594,0.42214125,70667.0,70652.0,0.1982352]
[1773449461795,0.042447,70666.0,70653.0,0.042454]
[1773449462195,0.042447,70666.0,70652.0,0.1982352]
[1773449463002,0.042447,70665.0,70652.0,0.00144]
[1773449464204,0.2869493,70664.0,70652.0,0.043894]
[1773449464400,0.2869493,70663.0,70652.0,0.043894]
[1773449464602,0.2869493,70662.0,70652.0,0.043894]
[1773449464801,0.2869493,70661.0,70652.0,0.043894]
[1773449465003,0.2869493,70660.0,70652.0,0.043894]
[1773449465213,0.2869493,70659.0,70652.0,0.043894]
[1773449465417,0.2869493,70658.0,70653.0,0.042454]
[1773449465615,0.2869493,70657.0,70653.0,0.042454]
[1773449465808,8.7e-07,70656.0,70653.0,0.042454]
[1773449466121,0.00849043,70663.0,70653.0,0.042454]
[1773449466509,0.00849043,70663.0,70654.0,0.042453]
[1773449467410,0.00849043,70663.0,70652.0,0.00144]
[1773449467813,0.00144,70668.0,70652.0,0.00144]
[1773449468213,0.042444,70670.0,70652.0,0.00144]
[1773449468410,0.00144,70669.0,70652.0,0.00144]
[1773449469118,0.00144,70669.0,70657.0,0.042451]
[1773449470117,0.00144,70669.0,70658.0,0.042451]
[1773449470616,0.00144,70669.0,70652.0,0.00144]
[1773449470617,0.042443,70672.0,70659.0,0.04245]
[1773449470814,0.00144,70674.0,70659.0,0.00144]
[1773449471315,0.00144,70674.0,70660.0,0.00144]
[1773449471514,0.00144,70674.0,70667.0,0.042445]
[1773449471715,0.19720672,70678.0,70667.0,0.042445]
[1773449471921,0.00144,70675.0,70668.0,0.042445]
[1773449472111,0.00144,70676.0,70669.0,0.042444]
[1773449472412,0.0007074,70681.0,70660.0,0.1982352]
[1773449472715,0.0007074,70681.0,70672.0,0.042442]
[1773449473423,0.0007074,70681.0,70660.0,0.1982352]
[1773449473617,0.0007074,70681.0,70660.0,0.07539719]
[1773449473918,0.0007074,70681.0,70661.0,0.1967952]
[1773449475114,0.0007074,70681.0,70673.0,0.042442]
[1773449477715,0.26526766,70680.0,70673.0,0.042442]
[1773449477915,0.26526766,70679.0,70673.0,0.042442]
[1773449478117,6.6e-07,70678.0,70667.0,0.1982352]
[1773449478316,0.0007074,70681.0,70667.0,0.1982352]
[1773449479128,4e-07,70681.0,70676.0,0.04244]
[1773449479315,0.19864672,70687.0,70676.0,0.04244]
[1773449479625,0.19720672,70687.0,70676.0,0.04244]
[1773449479815,0.00144,70686.0,70676.0,0.04244]
[1773449480414,0.19720672,70691.0,70667.0,0.1982352]
[1773449480617,0.042433,70689.0,70677.0,0.04244]
[1773449480818,0.19720672,70691.0,70678.0,0.042439]
[1773449480819,0.00144,70688.0,70678.0,0.042439]
[1773449481418,0.20482635,70687.0,70676.0,0.04244]
[1773449483133,0.20482635,70687.0,70678.0,0.042439]
[1773449483427,0.20626635,70687.0,70678.0,0.042439]
[1773449484229,0.20626635,70687.0,70673.0,0.00144]
[1773449484527,0.20626635,70687.0,70676.0,0.04244]
[1773449485121,0.20626635,70687.0,70677.0,0.042439]
[1773449485922,0.20626635,70687.0,70673.0,0.00144]
[1773449486527,0.20482635,70687.0,70673.0,0.00144]
[1773449486728,0.20482635,70687.0,70677.0,0.042439]
[1773449486927,0.20482635,70687.0,70673.0,0.00144]
[1773449487732,0.20626635,70687.0,70673.0,0.00144]
[1773449488136,0.20626635,70687.0,70677.0,0.042439]
[1773449489728,0.20482635,70687.0,70677.0,0.042439]
[1773449490029,0.20626635,70687.0,70677.0,0.042439]
[1773449490229,0.20482635,70685.0,70677.0,0.042439]
[1773449490431,0.43144408,70684.0,70677.0,0.03308624]
[1773449490630,0.22661773,70683.0,70677.0,0.03308624]
[1773449490942,7.3e-07,70682.0,70680.0,0.042437]
[1773449491239,0.20482635,70688.0,70673.0,0.00144]
[1773449491429,0.20482635,70688.0,70681.0,0.042437]
[1773449491735,0.20482635,70688.0,70673.0,0.00144]
[1773449493034,0.20482635,70688.0,70679.0,0.042438]
[1773449494530,0.20482635,70698.0,70689.0,0.042432]
[1773449494725,0.00144,70697.0,70689.0,0.042432]
[1773449494927,0.20626635,70697.0,70689.0,0.042432]
[1773449495322,0.20626635,70697.0,70687.0,0.042433]
[1773449495736,0.20626635,70697.0,70688.0,0.042433]
[1773449495929,0.20482635,70697.0,70688.0,0.042433]
[1773449496130,0.042426,70700.0,70688.0,0.042433]
[1773449496328,0.14745389,70702.0,70681.0,0.20077695]
[1773449496532,0.00144,70701.0,70681.0,0.20077695]
[1773449496740,0.00144,70701.0,70692.0,0.04243]
[1773449496935,0.20482635,70701.0,70692.0,0.04243]
[1773449497123,0.00144,70700.0,70692.0,0.04243]
[1773449497529,0.20482635,70701.0,70692.0,0.04243]
[1773449497530,0.20482635,70701.0,70692.0,0.042431]
[1773449497732,0.20482635,70701.0,70688.0,0.00144]
[1773449497938,0.20482635,70701.0,70694.0,0.042429]
[1773449498140,0.20482635,70701.0,70662.0,0.19933695]
[1773449498435,0.20482635,70699.0,70680.0,0.042438]
[1773449498857,0.042431,70692.0,70680.0,0.042438]
[1773449499036,0.20482635,70691.0,70675.0,0.00144]
[1773449500045,0.20482635,70691.0,70682.0,0.042436]
[1773449501441,0.20482635,70691.0,70675.0,0.00144]
[1773449501442,0.20482635,70691.0,70683.0,0.042436]
[1773449501840,0.20482635,70691.0,70675.0,0.00144]
[1773449503041,0.21760522,70690.0,70675.0,0.00144]
[1773449503341,0.42243157,70689.0,70675.0,0.00144]
[1773449503548,0.20482635,70687.0,70675.0,0.00144]
[1773449503747,0.42243157,70686.0,70675.0,0.00144]
[1773449503940,0.20482635,70684.0,70680.0,0.042438]
[1773449504146,2.2e-07,70683.0,70680.0,0.042438]
[1773449504653,2.2e-07,70683.0,70681.0,0.042437]
[1773449505241,0.13847977,70698.0,70676.0,0.19933695]
[1773449505242,0.20482635,70698.0,70676.0,0.19933695]
[1773449505646,0.20482635,70698.0,70675.0,0.00244]
[1773449506448,0.21375195,70696.0,70675.0,0.00244]
[1773449506749,0.21375195,70696.0,70680.0,0.001]
[1773449506951,0.21375195,70696.0,70689.0,0.042432]
[1773449507150,0.21375195,70696.0,70688.0,0.042433]
[1773449507545,0.21375195,70696.0,70689.0,0.042432]
[1773449509157,0.21375195,70696.0,70690.0,0.042432]
[1773449509558,0.21375195,70696.0,70690.0,0.03394602]
[1773449512052,0.21375195,70696.0,70682.0,0.00144]
[1773449512251,0.21375195,70696.0,70689.0,0.00848598]
[1773449512752,0.21375195,70696.0,70682.0,0.00144]
[1773449512953,0.21375195,70696.0,70690.0,0.042432]
[1773449513149,0.21375195,70696.0,70691.0,0.042431]
[1773449514165,0.42070125,70717.0,70691.0,0.00848598]
[1773449514361,0.20013597,70710.0,70700.0,0.042425]
[1773449514566,0.20013597,70708.0,70692.0,0.00144]
[1773449515168,0.20013597,70708.0,70700.0,0.042426]
[1773449515364,0.20013597,70708.0,70698.0,0.042427]
[1773449515671,0.20013597,70708.0,70696.0,0.042428]
[1773449515672,0.24255697,70708.0,70696.0,0.042428]
[1773449515863,0.20013597,70706.0,70691.0,0.00144]
[1773449516058,0.20157597,70706.0,70681.0,0.042437]
[1773449516270,0.20157597,70706.0,70682.0,0.00144]
[1773449516469,0.20013597,70702.0,70683.0,0.00144]
[1773449516670,0.20013597,70702.0,70674.0,0.21153762]
[1773449516869,0.20013597,70702.0,70675.0,0.00144]
[1773449517371,0.20013597,70702.0,70674.0,0.21153762]
[1773449517672,0.20013597,70702.0,70675.0,0.00144]
[1773449518171,0.20013597,70702.0,70674.0,0.21153762]
[1773449518363,0.20013597,70702.0,70675.0,0.00144]
[1773449518764,0.20013597,70702.0,70674.0,0.21153762]
[1773449518765,0.20013597,70702.0,70676.0,0.00144]
[1773449519269,0.20013597,70702.0,70692.0,0.04243]
[1773449519568,0.04242,70711.0,70699.0,0.042426]
[1773449519769,0.20013597,70710.0,70691.0,0.00144]
[1773449519968,0.20013597,70710.0,70698.0,0.042427]
[1773449520370,0.20013597,70710.0,70691.0,0.00144]
[1773449520371,0.20013597,70710.0,70699.0,0.042426]
[1773449521064,0.20157597,70709.0,70699.0,0.042426]
[1773449521268,0.00144,70709.0,70699.0,0.042426]
[1773449521977,0.20013597,70696.0,70687.0,0.042433]
[1773449522169,0.20013597,70696.0,70688.0,0.042433]
[1773449522362,0.20013597,70696.0,70687.0,0.00144]
[1773449522567,0.20013597,70696.0,70688.0,0.042433]
[1773449523167,0.00144,70702.0,70656.0,0.21153762]
[1773449523168,0.20013597,70687.0,70656.0,0.21153762]
[1773449523379,0.20013597,70684.0,70659.0,0.21153762]
[1773449523571,0.20013597,70684.0,70660.0,0.28690959]
[1773449523766,0.20013597,70684.0,70661.0,0.21297762]
[1773449523974,0.20013597,70684.0,70679.0,0.042438]
[1773449524374,0.00144,70688.0,70679.0,0.042438]
[1773449525968,0.00144,70688.0,70679.0,0.043438]
[1773449528380,0.00144,70688.0,70680.0,0.042438]
[1773449529776,0.00144,70688.0,70680.0,0.043438]
[1773449532874,0.19909869,70691.0,70680.0,0.043438]
[1773449533075,0.00144,70690.0,70680.0,0.044438]
[1773449536681,0.00144,70690.0,70681.0,0.042437]
[1773449537584,0.00144,70689.0,70682.0,0.042437]
[1773449538887,0.00144,70689.0,70681.0,0.001]
[1773449539280,0.20157597,70689.0,70681.0,0.001]
[1773449539480,0.20157597,70689.0,70681.0,0.002]
[1773449539877,0.20157597,70689.0,70676.0,0.04244]
[1773449540077,0.20157597,70689.0,70672.0,0.00144]
[1773449540078,0.042434,70688.0,70682.0,0.001]
[1773449540387,0.24256997,70688.0,70677.0,0.042439]
[1773449540780,0.20013597,70688.0,70678.0,0.042439]
[1773449541086,0.20013597,70688.0,70681.0,0.001]
[1773449541979,0.20013597,70688.0,70681.0,0.002]
[1773449542584,0.20013597,70688.0,70681.0,0.001]
[1773449542783,0.20013597,70688.0,70681.0,0.002]
[1773449543082,0.20013597,70688.0,70681.0,0.001]
[1773449543882,0.20013597,70688.0,70681.0,0.002]
[1773449552900,0.20013597,70688.0,70681.0,0.001]
[1773449553095,0.20013597,70688.0,70681.0,0.002]
[1773449555602,0.20013597,70688.0,70678.0,0.042439]
[1773449556902,0.20013597,70688.0,70678.0,0.043439]
[1773449557104,0.20013597,70688.0,70678.0,0.044439]
[1773449562100,0.20013597,70688.0,70678.0,0.002]
[1773449562611,0.19603701,70697.0,70679.0,0.19916858]
[1773449562806,0.61673826,70706.0,70684.0,0.19916858]
[1773449563102,0.19603701,70689.0,70678.0,1e-06]
[1773449563303,0.19603701,70689.0,70663.0,0.19916858]
[1773449563304,0.23847001,70689.0,70663.0,0.19916858]
[1773449563502,0.19603701,70689.0,70667.0,0.19916858]
[1773449563702,0.19603701,70689.0,70678.0,0.042439]
[1773449563908,0.043872,70690.0,70678.0,0.042439]
[1773449564503,0.19603701,70689.0,70675.0,0.00144]
[1773449564704,0.19603701,70689.0,70674.0,0.042441]
[1773449564705,0.19603701,70689.0,70676.0,0.00144]
[1773449564903,0.042434,70687.0,70678.0,0.001]
[1773449566909,0.042434,70687.0,70676.0,0.00144]
[1773449567810,0.042434,70687.0,70678.0,0.001]
[1773449568410,0.042434,70687.0,70676.0,0.00244]
[1773449568606,0.23847001,70689.0,70676.0,0.04488]
[1773449569008,0.042433,70688.0,70676.0,0.04488]
[1773449570421,0.042433,70688.0,70678.0,0.001]
[1773449571123,0.23744906,70688.0,70676.0,0.04388]
[1773449571309,0.23745006,70687.0,70676.0,0.04488]
[1773449571908,0.23745006,70687.0,70678.0,0.001]
[1773449573718,0.042435,70686.0,70678.0,0.001]
[1773449573911,0.042435,70686.0,70676.0,0.00244]
[1773449574418,0.042435,70686.0,70678.0,0.001]
[1773449574617,0.042435,70686.0,70676.0,0.00144]
[1773449574819,0.042435,70686.0,70678.0,0.001]
[1773449575113,0.042435,70686.0,70676.0,0.00144]
[1773449575318,0.042435,70686.0,70676.0,0.00244]
[1773449575520,0.042435,70686.0,70676.0,0.00344]
[1773449577319,0.042435,70686.0,70678.0,0.002]
[1773449578020,0.042435,70686.0,70678.0,0.001]
[1773449578213,0.042435,70686.0,70676.0,0.00244]
[1773449578819,0.042435,70686.0,70678.0,0.001]
[1773449579907,0.042435,70686.0,70676.0,0.00144]
[1773449580513,0.042435,70686.0,70678.0,0.001]
[1773449580710,0.042435,70686.0,70676.0,0.00144]
[1773449580917,0.042435,70686.0,70676.0,0.00244]
[1773449581112,0.23745106,70686.0,70676.0,0.00244]
[1773449581417,0.23745106,70686.0,70591.0,1.10563122]
[1773449581418,0.19501606,70680.0,70633.0,0.19753011]
[1773449581718,0.19501606,70680.0,70630.0,0.07395288]
[1773449581719,0.19501606,70659.0,70635.0,0.19753011]
[1773449581909,0.042453,70656.0,70636.0,0.00144]
[1773449582109,0.39474949,70655.0,70645.0,0.042458]
[1773449582423,0.19973343,70654.0,70646.0,0.042458]
[1773449582622,0.19973343,70653.0,70646.0,0.042458]
[1773449582920,0.19973343,70652.0,70646.0,0.042458]
[1773449583113,0.19973343,70651.0,70646.0,0.042458]
[1773449583314,4.3e-07,70650.0,70646.0,0.042458]
[1773449583516,0.19501606,70655.0,70642.0,0.00144]
[1773449583714,0.19501606,70655.0,70639.0,0.00144]
[1773449583915,0.19501606,70653.0,70639.0,0.00144]
[1773449584316,0.19501606,70653.0,70642.0,0.04246]
[1773449585209,0.19501606,70653.0,70639.0,0.00144]
[1773449585415,0.23747106,70653.0,70641.0,0.042461]
[1773449586116,0.23747106,70653.0,70642.0,0.001]
[1773449587418,0.042455,70652.0,70642.0,0.001]
[1773449587618,0.23747106,70652.0,70642.0,0.001]
[1773449587922,0.23747106,70652.0,70630.0,0.27148299]
[1773449587923,0.23747106,70652.0,70640.0,0.042462]
[1773449588117,0.19501606,70652.0,70640.0,0.042462]
[1773449588315,0.19501606,70652.0,70641.0,0.042461]
[1773449588523,0.19501606,70638.0,70621.0,0.00016522]
[1773449588823,0.19501606,70637.0,70624.0,0.042471]
[1773449589017,0.19645606,70637.0,70624.0,0.042471]
[1773449589220,0.19645606,70637.0,70625.0,0.042471]
[1773449589721,0.19645606,70637.0,70626.0,0.04247]
[1773449590116,0.19501606,70641.0,70632.0,0.042466]
[1773449590326,0.19645606,70641.0,70632.0,0.042466]
[1773449590628,0.19501606,70641.0,70621.0,0.00160522]
[1773449590924,0.00144,70640.0,70622.0,0.19753011]
[1773449591122,0.19501606,70646.0,70631.0,0.001]
[1773449591316,0.19645606,70645.0,70631.0,0.001]
[1773449591728,0.23839081,70664.0,70631.0,0.001]
[1773449591729,0.19501606,70663.0,70642.0,0.042461]
[1773449591919,0.19501606,70659.0,70644.0,0.042459]
[1773449592116,0.19501606,70655.0,70642.0,0.04246]
[1773449592524,0.19501606,70653.0,70642.0,0.04246]
[1773449592914,0.19501606,70653.0,70643.0,0.04246]
[1773449593120,0.23100718,70663.0,70638.0,0.19753011]
[1773449593327,0.23100718,70663.0,70640.0,0.07395288]
[1773449593524,0.19501606,70661.0,70639.0,0.00144]
[1773449593830,0.19501606,70659.0,70639.0,0.00144]
[1773449594015,0.6989114,70696.0,70641.0,0.19753011]
[1773449594216,0.19501606,70667.0,70625.0,0.042471]
[1773449594418,0.19501606,70659.0,70647.0,0.042457]
[1773449594619,0.19501606,70659.0,70639.0,0.00144]
[1773449595025,0.2368253,70680.0,70639.0,0.00144]
[1773449595026,0.00144,70668.0,70650.0,0.19753011]
[1773449595227,0.00144,70669.0,70652.0,0.19753011]
[1773449595421,0.00144,70669.0,70660.0,0.042449]
[1773449595615,0.00144,70669.0,70652.0,0.19753011]
[1773449595821,0.00144,70671.0,70661.0,0.042449]
[1773449596729,0.19501606,70673.0,70661.0,0.042449]
[1773449596923,0.00144,70672.0,70661.0,0.042449]
[1773449597517,0.19501606,70673.0,70662.0,0.042448]
[1773449597824,0.23745606,70677.0,70664.0,0.042447]
[1773449598020,0.00144,70676.0,70664.0,0.042447]
[1773449598216,0.19501606,70677.0,70660.0,0.07395288]
[1773449598523,0.00144,70676.0,70660.0,0.07395288]
[1773449599027,0.19501606,70677.0,70660.0,0.07395288]
[1773449599329,0.00144,70676.0,70660.0,0.07395288]
[1773449599531,0.19501606,70677.0,70665.0,0.042446]
[1773449599830,0.00144,70676.0,70666.0,0.042446]